bitfinex/quotes_BTCUSD_20250525
["timestamp","ask_amount","ask_price","bid_price","bid_amount"]
[1748167050760,0.08959595,106820.0,106810.0,0.99908]
[1748167057719,5.039e-05,106820.0,106810.0,1.03138]
[1748167057917,5.039e-05,106820.0,106810.0,2.022122]
[1748167058371,0.04056961,106820.0,106810.0,2.022122]
[1748167058742,5.039e-05,106820.0,106810.0,2.022122]
[1748167059106,0.04056961,106820.0,106810.0,2.022122]
[1748167059324,5.039e-05,106820.0,106810.0,2.022122]
[1748167059528,5.039e-05,106820.0,106810.0,2.11166756]
[1748167066414,0.04056961,106820.0,106810.0,2.11166756]
[1748167066925,5.039e-05,106820.0,106810.0,2.11166756]
[1748167069948,0.04056961,106820.0,106810.0,2.11166756]
[1748167077457,5.039e-05,106820.0,106810.0,2.11166756]
[1748167077672,0.04056961,106820.0,106810.0,2.11166756]
[1748167077887,5.039e-05,106820.0,106810.0,2.11166756]
[1748167078096,0.04056961,106820.0,106810.0,2.11166756]
[1748167086476,5.039e-05,106820.0,106810.0,2.11166756]
[1748167086677,0.04056961,106820.0,106810.0,2.11166756]
[1748167087858,0.3636,106830.0,106820.0,0.34]
[1748167088101,0.40411922,106830.0,106820.0,5.53998584]
[1748167088289,0.40411922,106830.0,106820.0,5.55452669]
[1748167088496,0.3636,106830.0,106820.0,5.55452669]
[1748167088704,0.04051922,106840.0,106830.0,0.0331]
[1748167088913,0.04051922,106840.0,106830.0,5.83297029]
[1748167089122,0.04051922,106840.0,106830.0,5.83063056]
[1748167089328,0.04051922,106840.0,106830.0,5.85811449]
[1748167089973,0.04051922,106840.0,106830.0,5.86011449]
[1748167090687,0.3636,106850.0,106840.0,0.3724]
[1748167090898,0.3636,106850.0,106840.0,5.422105]
[1748167091531,0.3636,106850.0,106840.0,5.43587745]
[1748167092201,0.3636,106850.0,106840.0,5.52542301]
[1748167092409,0.3646,106850.0,106840.0,5.52542301]
[1748167098430,0.001,106850.0,106840.0,5.56744779]
[1748167098937,0.05535667,106870.0,106860.0,0.0333]
[1748167099184,0.05535667,106870.0,106860.0,0.78108556]
[1748167099413,0.05535667,106870.0,106860.0,5.83079056]
[1748167100083,0.05535667,106870.0,106860.0,5.85827449]
[1748167100301,0.05540712,106870.0,106860.0,5.84533141]
[1748167101154,0.05640712,106870.0,106860.0,5.84533141]
[1748167101380,0.05540712,106870.0,106860.0,5.84533141]
[1748167101603,0.0148879,106870.0,106860.0,5.84633141]
[1748167101829,0.05540712,106870.0,106860.0,5.84633141]
[1748167102257,0.05640712,106870.0,106860.0,5.84633141]
[1748167102544,0.05540712,106870.0,106860.0,5.84633141]
[1748167102909,0.05540712,106870.0,106860.0,5.84833141]
[1748167104356,0.05540712,106870.0,106860.0,5.83327056]
[1748167105973,0.05540712,106870.0,106860.0,5.51555056]
[1748167106215,0.05540712,106870.0,106860.0,5.83327056]
[1748167108252,0.05540712,106870.0,106860.0,5.81643056]
[1748167108881,0.05540712,106870.0,106860.0,5.49875056]
[1748167109087,0.0467879,106870.0,106860.0,1.396572]
[1748167111967,0.0467879,106870.0,106860.0,1.732612]
[1748167115409,0.0467879,106870.0,106860.0,1.414932]
[1748167115613,0.41273255,106870.0,106860.0,1.458608]
[1748167115865,0.4103879,106870.0,106860.0,1.458608]
[1748167117483,0.3784879,106870.0,106860.0,1.458608]
[1748167117692,0.3784879,106870.0,106860.0,1.474708]
[1748167117865,0.3784879,106870.0,106860.0,1.458608]
[1748167118069,0.4118879,106870.0,106860.0,1.458608]
[1748167118315,0.3944879,106870.0,106860.0,1.458608]
[1748167118694,0.3784879,106870.0,106860.0,1.458608]
[1748167125694,0.3784879,106870.0,106860.0,1.475208]
[1748167126965,0.3784879,106870.0,106860.0,1.492108]
[1748167128056,0.41900712,106870.0,106860.0,1.492108]
[1748167128257,0.0148879,106870.0,106860.0,1.475208]
[1748167129233,0.0148879,106870.0,106860.0,1.458608]
[1748167131707,0.0148879,106870.0,106860.0,1.475608]
[1748167132865,0.0148879,106870.0,106860.0,1.491808]
[1748167133782,0.05540712,106870.0,106860.0,1.58135356]
[1748167135561,0.0148879,106870.0,106860.0,1.58135356]
[1748167135766,0.05540712,106870.0,106860.0,1.58135356]
[1748167141737,0.0148879,106870.0,106860.0,1.58135356]
[1748167141890,0.05540712,106870.0,106860.0,1.58135356]
[1748167144327,0.05540712,106870.0,106860.0,1.60937056]
[1748167146326,0.05540712,106870.0,106860.0,1.58135356]
[1748167150307,0.05540712,106870.0,106860.0,1.56515356]
[1748167150513,0.05540712,106870.0,106860.0,1.24747356]
[1748167150725,0.05540712,106870.0,106860.0,1.140928]
[1748167150930,0.08880712,106870.0,106860.0,1.458168]
[1748167152727,0.07220712,106870.0,106860.0,1.458168]
[1748167152931,0.08880712,106870.0,106860.0,1.458168]
[1748167155528,0.08880712,106870.0,106860.0,1.140928]
[1748167155730,0.08880712,106870.0,106860.0,1.458168]
[1748167156355,0.45240712,106870.0,106860.0,1.458168]
[1748167157252,0.4118879,106870.0,106860.0,1.458168]
[1748167161346,0.3952879,106870.0,106860.0,1.458168]
[1748167161525,0.3784879,106870.0,106860.0,1.458168]
[1748167161723,0.4118879,106870.0,106860.0,1.458168]
[1748167162746,0.3952879,106870.0,106860.0,1.458168]
[1748167164633,0.43580712,106870.0,106860.0,1.458168]
[1748167164888,0.3952879,106870.0,106860.0,1.458168]
[1748167165214,0.3784879,106870.0,106860.0,1.491668]
[1748167166462,0.3784879,106870.0,106860.0,1.58121356]
[1748167174301,0.41900712,106870.0,106860.0,1.58121356]
[1748167174611,0.3784879,106870.0,106860.0,1.58121356]
[1748167179979,0.41900712,106870.0,106860.0,1.58121356]
[1748167180170,0.41900712,106870.0,106860.0,1.57987356]
[1748167181919,0.40416967,106870.0,106860.0,1.57987356]
[1748167182064,0.40775142,106870.0,106860.0,1.57987356]
[1748167182886,0.04415142,106870.0,106860.0,1.57987356]
[1748167184159,0.0036322,106870.0,106860.0,1.59441441]
[1748167184503,0.0036322,106870.0,106860.0,1.62242941]
[1748167184724,0.04415142,106870.0,106860.0,1.62242941]
[1748167184901,0.0036322,106870.0,106860.0,1.62242941]
[1748167185352,0.04415142,106870.0,106860.0,1.62242941]
[1748167187249,0.04415142,106870.0,106860.0,1.62246941]
[1748167190451,0.04415142,106870.0,106860.0,1.60792856]
[1748167190650,0.04415142,106870.0,106860.0,1.62246941]
[1748167192278,0.0036322,106870.0,106860.0,1.62246941]
[1748167198885,0.0036322,106870.0,106860.0,1.63739166]
[1748167199666,0.0036322,106870.0,106860.0,1.66487507]
[1748167201727,0.0036322,106870.0,106860.0,1.64995282]
[1748167203523,0.0324789,106900.0,106880.0,0.04834085]
[1748167203730,0.01648324,106900.0,106890.0,5.79549056]
[1748167204625,0.04978324,106900.0,106890.0,5.79549056]
[1748167204827,0.04978324,106900.0,106890.0,5.01271456]
[1748167205410,0.03398324,106900.0,106890.0,5.01271456]
[1748167205728,0.03498324,106900.0,106890.0,5.01271456]
[1748167205930,0.01948324,106900.0,106890.0,5.01271456]
[1748167206273,0.01948324,106900.0,106890.0,3.37231956]
[1748167207412,0.06000246,106900.0,106890.0,3.38921956]
[1748167207602,0.06000246,106900.0,106890.0,3.40611956]
[1748167208260,0.06000246,106900.0,106890.0,3.37231956]
[1748167208473,0.09330246,106900.0,106890.0,3.37231956]
[1748167208699,0.09130246,106900.0,106890.0,3.37231956]
[1748167209436,0.05078324,106900.0,106890.0,3.282774]
[1748167209662,0.05178324,106900.0,106890.0,3.033561]
[1748167209883,0.05178324,106900.0,106890.0,2.64808]
[1748167210060,0.05178324,106900.0,106890.0,2.96432]
[1748167210513,0.05178324,106900.0,106890.0,1.781738]
[1748167210644,0.05178324,106900.0,106890.0,1.961509]
[1748167211053,0.05178324,106900.0,106890.0,1.795452]
[1748167211252,0.05178324,106900.0,106890.0,1.795492]
[1748167211875,0.05178324,106900.0,106890.0,0.39901]
[1748167212085,0.05178324,106900.0,106890.0,0.129788]
[1748167212325,0.05178324,106900.0,106890.0,0.786028]
[1748167212733,0.05178324,106900.0,106890.0,0.469788]
[1748167212937,0.05178324,106900.0,106890.0,0.786028]
[1748167213750,0.05178324,106900.0,106890.0,0.636708]
[1748167213939,0.05178324,106900.0,106890.0,0.786028]
[1748167214701,0.05178324,106900.0,106890.0,0.757477]
[1748167214936,0.1413288,106900.0,106890.0,0.608157]
[1748167215332,0.1413288,106900.0,106890.0,0.65628]
[1748167215546,0.14367345,106900.0,106890.0,0.34004]
[1748167215754,0.14367345,106900.0,106890.0,0.65628]
[1748167216566,0.1413288,106900.0,106890.0,0.7846]
[1748167216996,0.1413288,106900.0,106890.0,0.7735]
[1748167217640,0.1413288,106900.0,106890.0,0.65628]
[1748167219777,0.1413288,106900.0,106890.0,0.99224]
[1748167220752,0.1413288,106900.0,106890.0,0.84292]
[1748167220949,0.1413288,106900.0,106890.0,0.99224]
[1748167221715,0.1403288,106900.0,106890.0,0.99224]
[1748167222037,0.1433288,106900.0,106890.0,0.99224]
[1748167222252,0.1423288,106900.0,106890.0,0.99224]
[1748167222639,0.1443288,106900.0,106890.0,0.99224]
[1748167237162,0.1443288,106900.0,106890.0,0.99188]
[1748167242235,0.1443288,106900.0,106890.0,0.65188]
[1748167245144,0.1443288,106900.0,106890.0,0.336]
[1748167245352,0.1443288,106900.0,106890.0,0.65188]
[1748167252268,0.15886965,106900.0,106890.0,0.336]
[1748167252470,0.91291621,106900.0,106890.0,0.50252]
[1748167252675,0.92291621,106900.0,106890.0,0.50252]
[1748167252874,0.94915037,106900.0,106890.0,0.336]
[1748167253096,0.94615037,106900.0,106890.0,0.50252]
[1748167253392,0.95810504,106900.0,106890.0,0.50252]
[1748167253592,0.95610504,106900.0,106890.0,0.50252]
[1748167254026,0.95810504,106900.0,106890.0,0.50252]
[1748167254247,0.96410504,106900.0,106890.0,0.50252]
[1748167254688,0.36356,106890.0,106880.0,0.14936]
[1748167254891,0.50949297,106890.0,106880.0,0.31592]
[1748167255013,0.51884264,106890.0,106880.0,0.31592]
[1748167255819,0.55688213,106890.0,106880.0,0.31592]
[1748167256033,0.55888213,106890.0,106880.0,0.31592]
[1748167256703,0.54397652,106890.0,106880.0,0.31592]
[1748167258229,0.54395557,106890.0,106880.0,0.31592]
[1748167259243,0.53522996,106890.0,106880.0,0.31592]
[1748167259847,0.50212996,106890.0,106860.0,0.33612]
[1748167260001,0.4125844,106890.0,106880.0,0.1662]
[1748167260211,0.50212996,106890.0,106880.0,0.1662]
[1748167260419,0.50203828,106890.0,106880.0,0.1662]
[1748167260625,0.53213828,106890.0,106880.0,0.1662]
[1748167261237,0.53013828,106890.0,106880.0,0.1662]
[1748167262257,0.53313828,106890.0,106880.0,0.1662]
[1748167262492,0.37956832,106880.0,106870.0,0.14936]
[1748167262727,0.45291388,106880.0,106870.0,0.31556]
[1748167263842,0.46386855,106880.0,106870.0,0.31556]
[1748167264496,0.46586855,106880.0,106870.0,0.32497293]
[1748167265023,0.46586855,106880.0,106860.0,0.36952]
[1748167265242,0.40942299,106880.0,106870.0,0.3156]
[1748167265457,0.49896855,106880.0,106870.0,0.3156]
[1748167265903,0.49696855,106880.0,106870.0,0.3156]
[1748167267357,0.49896855,106880.0,106870.0,0.3156]
[1748167267770,0.49896855,106880.0,106860.0,0.33612]
[1748167267974,0.4764327,106880.0,106870.0,0.1662]
[1748167268176,0.5135094,106880.0,106870.0,0.3156]
[1748167268343,0.15014108,106880.0,106870.0,0.3156]
[1748167268967,0.15932029,106880.0,106870.0,0.3156]
[1748167269851,0.16166494,106880.0,106870.0,0.3156]
[1748167270054,0.16366494,106880.0,106870.0,0.3156]
[1748167271756,0.16366494,106880.0,106870.0,0.1662]
[1748167271960,0.04714085,106870.0,106860.0,0.33612]
[1748167272164,0.39596,106860.0,106850.0,4e-05]
[1748167272385,0.48550556,106860.0,106850.0,0.31564]
[1748167273149,0.46920556,106860.0,106850.0,0.31564]
[1748167273343,0.46920556,106860.0,106850.0,0.31569045]
[1748167273546,0.47816023,106860.0,106850.0,0.31569045]
[1748167274116,0.49446023,106860.0,106850.0,0.31569045]
[1748167274899,0.49446023,106860.0,106850.0,0.31573045]
[1748167275305,0.46186023,106860.0,106850.0,0.31573045]
[1748167275547,0.46586023,106860.0,106850.0,0.68793045]
[1748167275799,0.01295467,106860.0,106850.0,0.68793045]
[1748167276035,0.004,106860.0,106850.0,2.59675345]
[1748167276285,0.004,106860.0,106850.0,1.98632445]
[1748167276483,0.004,106860.0,106850.0,1.11090645]
[1748167276691,0.002,106860.0,106850.0,1.11090645]
[1748167277191,0.003,106860.0,106850.0,1.11090645]
[1748167277628,0.001,106860.0,106850.0,1.11090645]
[1748167277825,0.002,106860.0,106850.0,1.11090645]
[1748167278227,0.002,106860.0,106850.0,1.08781345]
[1748167278441,0.002,106860.0,106850.0,1.01745445]
[1748167281858,0.002,106860.0,106850.0,0.86805445]
[1748167282035,0.002,106860.0,106850.0,0.68793045]
[1748167282243,0.002,106860.0,106850.0,0.80545445]
[1748167284459,0.002,106860.0,106850.0,0.65601445]
[1748167284679,0.002,106860.0,106850.0,0.80541445]
[1748167288438,0.002,106860.0,106850.0,0.80505445]
[1748167293447,0.002,106860.0,106850.0,0.48981445]
[1748167293708,0.002,106860.0,106850.0,0.80505445]
[1748167299492,0.002,106860.0,106850.0,1.14117445]
[1748167303425,0.002,106860.0,106850.0,0.99177445]
[1748167303637,0.10804556,106860.0,106850.0,0.99145045]
[1748167304066,0.10049385,106860.0,106850.0,0.99145045]
[1748167304492,0.10049385,106860.0,106850.0,1.02425045]
[1748167305260,0.09154556,106860.0,106850.0,1.02425045]
[1748167305474,0.09154556,106860.0,106850.0,1.00795045]
[1748167306656,0.09154556,106860.0,106850.0,1.02425045]
[1748167306860,0.10050479,106860.0,106850.0,1.02425045]
[1748167307491,0.01095923,106860.0,106850.0,1.02425045]
[1748167312395,0.01095923,106860.0,106850.0,0.87485045]
[1748167312631,0.01095923,106860.0,106850.0,1.02425045]
[1748167314258,0.01095923,106860.0,106850.0,0.87485045]
[1748167314496,0.01095923,106860.0,106850.0,1.02425045]
[1748167314694,0.01095923,106860.0,106850.0,1.00795045]
[1748167315358,0.13420479,106860.0,106850.0,0.33621045]
[1748167315568,0.13420479,106860.0,106850.0,0.65145045]
[1748167316008,0.13654944,106860.0,106850.0,0.65145045]
[1748167316418,0.13654944,106860.0,106850.0,0.33621045]
[1748167316624,0.13654944,106860.0,106850.0,0.65145045]
[1748167317056,0.14774848,106860.0,106850.0,0.65145045]
[1748167318284,0.14774848,106860.0,106850.0,0.33621045]
[1748167318490,0.14774848,106860.0,106850.0,0.65109045]
[1748167319594,0.13654944,106860.0,106850.0,0.65109045]
[1748167321092,0.14774848,106860.0,106850.0,0.65109045]
[1748167323115,0.13654944,106860.0,106850.0,0.66046756]
[1748167329975,0.10284944,106860.0,106850.0,0.34558756]
[1748167330155,0.10050479,106860.0,106850.0,0.69380756]
[1748167330353,0.10050479,106860.0,106850.0,1.78116356]
[1748167330562,0.01095923,106860.0,106850.0,1.78116356]
[1748167330862,0.01095923,106860.0,106850.0,1.29286856]
[1748167331352,0.002,106860.0,106850.0,1.29286856]
[1748167332171,0.002,106860.0,106850.0,1.76786856]
[1748167332837,0.002,106860.0,106850.0,2.10786856]
[1748167335100,0.002,106860.0,106850.0,2.09362956]
[1748167344524,0.04251922,106860.0,106850.0,2.18317512]
[1748167344729,0.3634,106880.0,106850.0,1.83735853]
[1748167344932,0.40391922,106880.0,106870.0,0.0336]
[1748167345129,0.01993192,106890.0,106880.0,0.0336]
[1748167345380,0.08952016,106900.0,106890.0,0.0336]
[1748167345588,0.08952016,106900.0,106890.0,5.161711]
[1748167346385,0.08952016,106900.0,106890.0,5.25125656]
[1748167346541,0.0900245,106900.0,106890.0,5.25125656]
[1748167346977,0.04950528,106900.0,106890.0,5.59125656]
[1748167347749,0.05150528,106900.0,106890.0,5.61873997]
[1748167347955,0.04950528,106900.0,106890.0,5.61973997]
[1748167348343,0.04950528,106900.0,106890.0,5.62173997]
[1748167348542,0.04950528,106900.0,106890.0,5.62073997]
[1748167348745,0.04950528,106900.0,106890.0,5.62273997]
[1748167351374,0.01648324,106900.0,106890.0,5.62273997]
[1748167353081,0.01648324,106900.0,106890.0,5.59525656]
[1748167353538,0.01648324,106900.0,106890.0,5.34990756]
[1748167355662,0.05700246,106900.0,106890.0,2.010145]
[1748167355892,0.01648324,106900.0,106890.0,1.602816]
[1748167356100,0.01648324,106900.0,106890.0,2.092136]
[1748167356313,0.01648324,106900.0,106890.0,0.873249]
[1748167356526,0.01648324,106900.0,106890.0,0.565949]
[1748167356731,0.01648324,106900.0,106890.0,0.905949]
[1748167362926,0.01648324,106900.0,106890.0,0.99549456]
[1748167364263,0.01648324,106900.0,106890.0,1.33145456]
[1748167365497,0.05700246,106900.0,106890.0,1.33145456]
[1748167365624,0.01648324,106900.0,106890.0,1.33145456]
[1748167366300,0.01648324,106900.0,106890.0,1.18213456]
[1748167366474,0.01648324,106900.0,106890.0,1.092549]
[1748167366613,0.01648324,106900.0,106890.0,0.911269]
[1748167366819,0.04948324,106900.0,106890.0,0.894769]
[1748167367069,0.04948324,106900.0,106890.0,1.141142]
[1748167367480,0.04948324,106900.0,106890.0,0.826742]
[1748167367679,0.04948324,106900.0,106890.0,1.098356]
[1748167369243,0.04948324,106900.0,106890.0,0.84504]
[1748167369445,0.1390288,106900.0,106890.0,0.84504]
[1748167369664,0.1390288,106900.0,106890.0,0.99436]
[1748167369878,0.1390288,106900.0,106890.0,0.67996]
[1748167370017,0.1390288,106900.0,106890.0,0.99436]
[1748167370710,0.01648324,106900.0,106890.0,0.99436]
[1748167370884,0.01648324,106900.0,106890.0,3.666824]
[1748167371042,0.01648324,106900.0,106890.0,3.682924]
[1748167371245,0.01648324,106900.0,106890.0,3.698824]
[1748167372298,0.05700246,106900.0,106890.0,3.698824]
[1748167372447,0.01648324,106900.0,106890.0,3.698824]
[1748167373695,0.05700246,106900.0,106890.0,3.698824]
[1748167374886,0.01648324,106900.0,106890.0,3.698824]
[1748167375268,0.05700246,106900.0,106890.0,3.698824]
[1748167375483,0.01648324,106900.0,106890.0,3.698824]
[1748167376513,0.01648324,106900.0,106890.0,0.67996]
[1748167376514,0.04918324,106900.0,106890.0,0.67996]
[1748167376721,0.14107345,106900.0,106890.0,0.65436]
[1748167377768,0.14107345,106900.0,106890.0,0.65236]
[1748167377979,0.14107345,106900.0,106890.0,0.65036]
[1748167378866,0.14107345,106900.0,106890.0,0.99036]
[1748167379486,0.14107345,106900.0,106890.0,0.65036]
[1748167379646,0.14107345,106900.0,106890.0,0.33596]
[1748167380047,0.14107345,106900.0,106890.0,0.65016]
[1748167394944,0.14107345,106900.0,106890.0,0.6502]
[1748167397603,0.14107345,106900.0,106890.0,0.33596]
[1748167397807,0.14107345,106900.0,106890.0,0.6502]
[1748167399166,0.01882789,106900.0,106890.0,0.6502]
[1748167399383,0.01648324,106900.0,106890.0,1.15066341]
[1748167399638,0.01648324,106900.0,106890.0,1.12318]
[1748167400146,0.01648324,106900.0,106890.0,1.108826]
[1748167400349,0.01648324,106900.0,106890.0,1.448826]
[1748167403473,0.05700246,106900.0,106890.0,1.53837156]
[1748167404343,0.05700246,106900.0,106890.0,1.448786]
[1748167404563,0.05700246,106900.0,106890.0,1.449786]
[1748167404959,0.05700246,106900.0,106890.0,1.450786]
[1748167405370,0.05700246,106900.0,106890.0,1.136586]
[1748167405581,0.05700246,106900.0,106890.0,1.450786]
[1748167412551,0.01648324,106900.0,106890.0,1.450786]
[1748167413632,0.01648324,106900.0,106890.0,0.780186]
[1748167413834,0.04848324,106900.0,106890.0,0.65192]
[1748167414396,0.1380288,106900.0,106890.0,0.99192]
[1748167414612,0.1380288,106900.0,106890.0,0.65192]
[1748167422325,0.14037345,106900.0,106890.0,0.65192]
[1748167422756,0.14037345,106900.0,106890.0,0.65092]
[1748167423428,0.1380288,106900.0,106890.0,0.64992]
[1748167423648,0.1380288,106900.0,106890.0,0.65092]
[1748167424066,0.1380288,106900.0,106890.0,0.64992]
[1748167424267,0.1380288,106900.0,106890.0,0.65092]
[1748167424467,0.1400288,106900.0,106890.0,0.64992]
[1748167424675,0.1410288,106900.0,106890.0,0.64992]
[1748167427944,0.1410288,106900.0,106890.0,0.65]
[1748167441470,0.1090288,106900.0,106890.0,0.65]
[1748167441681,0.1090288,106900.0,106890.0,0.6843]
[1748167442101,0.01948324,106900.0,106890.0,0.6843]
[1748167442517,0.01948324,106900.0,106890.0,1.0243]
[1748167443169,0.01948324,106900.0,106890.0,5.042747]
[1748167443378,0.01948324,106900.0,106890.0,4.932795]
[1748167445515,0.01848324,106900.0,106890.0,4.932795]
[1748167445714,0.01648324,106900.0,106890.0,4.932795]
[1748167446261,0.01648324,106900.0,106890.0,5.02234056]
[1748167446894,0.05700246,106900.0,106890.0,5.02234056]
[1748167451069,0.01880246,106900.0,106890.0,5.02234056]
[1748167456226,0.01880246,106900.0,106890.0,4.70830056]
[1748167456431,0.01880246,106900.0,106890.0,4.73349756]
[1748167467359,0.38220246,106910.0,106900.0,0.0316]
[1748167467565,0.38225287,106910.0,106900.0,5.24804324]
[1748167467772,0.38225287,106910.0,106900.0,5.245705]
[1748167468562,0.38225287,106910.0,106900.0,5.25970566]
[1748167468764,0.38425287,106910.0,106900.0,5.25970566]
[1748167468949,0.38525287,106910.0,106900.0,5.25970566]
[1748167469192,0.38425287,106910.0,106900.0,5.25970566]
[1748167470175,0.38225287,106910.0,106900.0,5.25970566]
[1748167472149,0.38225287,106910.0,106900.0,5.93562566]
[1748167480339,0.38225287,106910.0,106900.0,6.08490566]
[1748167480561,0.38225287,106910.0,106900.0,3.84689766]
[1748167480759,0.36345041,106910.0,106900.0,1.88487966]
[1748167481164,0.38065041,106910.0,106900.0,1.88487966]
[1748167481321,0.39725041,106910.0,106900.0,1.88487966]
[1748167482426,0.39725041,106910.0,106900.0,1.54487966]
[1748167483215,0.36345041,106910.0,106900.0,1.54487966]
[1748167485491,0.38065041,106910.0,106900.0,1.88487966]
[1748167486539,0.36345041,106910.0,106900.0,1.88487966]
[1748167489379,0.36345041,106910.0,106900.0,1.90187966]
[1748167490137,0.36345041,106910.0,106900.0,1.91867966]
[1748167494138,0.36345041,106910.0,106900.0,2.00822522]
[1748167495164,5.041e-05,106910.0,106900.0,2.00822522]
[1748167496655,0.01885287,106910.0,106900.0,2.00822522]
[1748167497139,0.01885287,106910.0,106900.0,2.01935684]
[1748167497357,5.041e-05,106910.0,106900.0,2.01935684]
[1748167497589,0.01885287,106910.0,106900.0,2.01935684]
[1748167500614,0.01885287,106910.0,106900.0,1.87007684]
[1748167500846,0.01885287,106910.0,106900.0,2.01935684]
[1748167506386,0.01885287,106910.0,106900.0,1.70583684]
[1748167506619,0.05255287,106910.0,106900.0,1.89589128]
[1748167507297,0.05255287,106910.0,106900.0,1.88475966]
[1748167507683,0.03575287,106910.0,106900.0,1.88475966]
[1748167507884,0.01885287,106910.0,106900.0,1.88475966]
[1748167509390,0.01885287,106910.0,106900.0,1.90225966]
[1748167509825,0.01885287,106910.0,106900.0,1.57135966]
[1748167510025,0.39645041,106910.0,106900.0,1.88475966]
[1748167512190,0.38055041,106910.0,106900.0,1.88475966]
[1748167513410,0.36345041,106910.0,106900.0,1.88475966]
[1748167514016,0.03275041,106910.0,106900.0,0.61515666]
[1748167514277,0.03275041,106910.0,106900.0,0.76443666]
[1748167514479,0.03275041,106910.0,106900.0,1.10443666]
[1748167515510,0.03275041,106910.0,106900.0,0.79103666]
[1748167515733,0.0327,106880.0,106870.0,0.03518535]
[1748167515955,0.0327,106880.0,106870.0,3.19956335]
[1748167516159,0.0327,106880.0,106870.0,3.05526635]
[1748167516364,0.0327,106880.0,106870.0,1.57916456]
[1748167516574,0.0327,106880.0,106870.0,1.26576456]
[1748167516793,0.0327,106880.0,106870.0,0.78366356]
[1748167517014,0.0327,106880.0,106870.0,1.12866356]
[1748167517475,0.0327,106880.0,106870.0,1.12366356]
[1748167517678,0.0327,106880.0,106870.0,1.12866356]
[1748167517880,0.0327,106880.0,106870.0,0.81226356]
[1748167518135,0.0327,106880.0,106870.0,0.51121156]
[1748167518136,0.12224556,106880.0,106870.0,0.51121156]
[1748167518342,0.12224556,106880.0,106870.0,0.65853156]
[1748167518553,0.12224556,106880.0,106870.0,0.65953156]
[1748167519572,0.12224556,106880.0,106870.0,0.66053156]
[1748167519787,0.12224556,106880.0,106870.0,0.65853156]
[1748167520251,0.12524556,106880.0,106870.0,0.65853156]
[1748167521560,0.12524556,106880.0,106870.0,0.99853156]
[1748167521978,0.12759021,106880.0,106870.0,0.99853156]
[1748167522570,0.003,106880.0,106870.0,1.02542183]
[1748167522808,0.003,106880.0,106870.0,3.72885956]
[1748167523014,0.003,106880.0,106870.0,6.06563656]
[1748167523232,0.003,106880.0,106870.0,6.08303656]
[1748167523424,0.02180246,106880.0,106870.0,6.08303656]
[1748167523582,0.01980246,106880.0,106870.0,6.08303656]
[1748167523791,0.01980246,106880.0,106870.0,6.17258212]
[1748167523999,0.01880246,106880.0,106870.0,6.17258212]
[1748167524601,0.01880246,106880.0,106870.0,5.83168212]
[1748167528311,0.01880246,106880.0,106870.0,6.17168212]
[1748167529069,0.3634,106900.0,106880.0,0.34]
[1748167529277,0.3634,106900.0,106890.0,2.212991]
[1748167530295,0.3664,106900.0,106890.0,2.212991]
[1748167530468,0.3654,106900.0,106890.0,2.212991]
[1748167531176,0.3684,106900.0,106890.0,2.212991]
[1748167531382,0.3684,106900.0,106890.0,1.905334]
[1748167531568,0.3684,106900.0,106890.0,1.68698]
[1748167531774,0.4019,106900.0,106890.0,0.468252]
[1748167532396,0.385,106900.0,106890.0,0.468252]
[1748167534057,0.3684,106900.0,106890.0,0.468252]
[1748167535197,0.3684,106900.0,106890.0,0.485352]
[1748167535409,0.3684,106900.0,106890.0,0.842752]
[1748167536507,0.38720246,106900.0,106890.0,0.842752]
[1748167537378,0.3684,106900.0,106890.0,0.842752]
[1748167537584,0.005,106900.0,106890.0,0.93229756]
[1748167538969,0.003,106900.0,106890.0,0.93229756]
[1748167539267,0.01885287,106910.0,106890.0,0.56079756]
[1748167539403,0.01885287,106910.0,106900.0,5.33787056]
[1748167540753,0.01885287,106910.0,106900.0,5.33887056]
[1748167542173,5.041e-05,106910.0,106900.0,5.33887056]
[1748167542385,0.01885287,106910.0,106900.0,5.69284403]
[1748167542638,0.01885287,106910.0,106900.0,5.69384403]
[1748167542819,5.041e-05,106910.0,106900.0,5.69384403]
[1748167543036,0.01885287,106910.0,106900.0,5.69384403]
[1748167547293,0.01885287,106910.0,106900.0,6.02976403]
[1748167548210,0.01885287,106910.0,106900.0,6.17904403]
[1748167551331,5.041e-05,106910.0,106900.0,6.17904403]
[1748167551553,0.01885287,106910.0,106900.0,6.17904403]
[1748167552673,5.041e-05,106910.0,106900.0,6.17904403]
[1748167552902,0.3634,106930.0,106920.0,0.0169]
[1748167553126,0.36345039,106930.0,106920.0,5.30543056]
[1748167553363,0.36345039,106930.0,106920.0,5.32263056]
[1748167553600,0.38225285,106930.0,106920.0,4.06453056]
[1748167553814,0.38225285,106930.0,106920.0,3.91525056]
[1748167554054,0.39775039,106930.0,106920.0,1.441831]
[1748167554269,0.39775039,106930.0,106920.0,0.51696]
[1748167554483,0.39775039,106930.0,106920.0,0.2036]
[1748167554705,0.39775039,106930.0,106920.0,0.51696]
[1748167554925,0.39975039,106930.0,106920.0,0.31336]
[1748167555140,0.39975039,106930.0,106920.0,3.397698]
[1748167555370,0.01880246,106910.0,106900.0,0.36809347]
[1748167555593,0.01880246,106910.0,106900.0,5.81970403]
[1748167555824,0.01880246,106910.0,106900.0,5.83660403]
[1748167556296,0.01880246,106910.0,106900.0,6.17660403]
[1748167556508,0.01880246,106910.0,106900.0,6.17760403]
[1748167557533,0.36345039,106930.0,106910.0,0.3741]
[1748167557803,0.39665039,106930.0,106920.0,3.574183]
[1748167559012,0.39665039,106930.0,106920.0,0.97968]
[1748167559182,0.39765039,106930.0,106920.0,0.824127]
[1748167559388,0.39965039,106930.0,106920.0,0.824127]
[1748167560680,0.05340246,106920.0,106910.0,0.34]
[1748167560823,0.0346,106920.0,106910.0,1.190445]
[1748167561039,0.0346,106920.0,106910.0,0.979911]
[1748167561197,0.0346,106920.0,106910.0,0.87361747]
[1748167561418,0.0346,106920.0,106910.0,2.712158]
[1748167561842,0.398,106910.0,106900.0,0.34989347]
[1748167562065,0.398,106910.0,106900.0,0.66325347]
[1748167562280,0.398,106910.0,106900.0,0.76675247]
[1748167562918,0.398,106910.0,106900.0,0.61747247]
[1748167563130,0.398,106910.0,106900.0,0.45339247]
[1748167563344,0.48754556,106910.0,106900.0,0.66425347]
[1748167563777,0.48754556,106910.0,106900.0,1.29039047]
[1748167563990,0.48754556,106910.0,106900.0,1.29139047]
[1748167564405,0.48754556,106910.0,106900.0,1.29039047]
[1748167564846,0.48754556,106910.0,106900.0,1.23824647]
[1748167565258,0.48754556,106910.0,106900.0,1.22124647]
[1748167565456,0.48754556,106910.0,106900.0,1.00325347]
[1748167566860,0.48754556,106910.0,106900.0,1.10385447]